fUST/lending_fUST_20260625
["ID","MTS","AMOUNT","RATE_DAILY","PERIOD"]
[426413998,1782361629000,-781.13662566,9.7e-05,7]
[426413997,1782361629000,-153.0,9.7e-05,7]
[426414000,1782361629000,-153.0,9.986e-05,7]
[426414002,1782361629000,-161.94863894,9.986e-05,7]
[426414001,1782361629000,-781.13662566,9.986e-05,7]
[426414003,1782361629000,-300.0,0.00010269,2]
[426414004,1782361629000,-81.00475883,0.00010271,7]
[426413999,1782361629000,-161.94863894,9.7e-05,7]
[426414005,1782361634000,-71.99524117,0.00010271,7]
[426414006,1782361634000,-405.67507487,0.00010271,7]
[426414008,1782361746000,-375.46155079,0.00010271,7]
[426414009,1782361746000,-161.94863894,0.00010271,7]
[426414010,1782361746000,-165.93813231,0.00010651,7]
[426414012,1782361746000,-161.94863894,0.00010651,7]
[426414014,1782361746000,-56595.51261381,0.00011184,2]
[426414013,1782361746000,-586.84770241,0.00011183,2]
[426414011,1782361746000,-781.13662566,0.00010651,7]
[426414016,1782361756000,-3184.17328062,0.00011193,2]
[426414015,1782361756000,-7389.60417489,0.00011184,2]
[426414037,1782361768000,-1494.595065,0.00014296,2]
[426414036,1782361768000,-1494.595065,0.00013781,2]
[426414035,1782361768000,-293.231178,0.00013699,2]
[426414034,1782361768000,-399.390866,0.00013699,2]
[426414033,1782361768000,-4105.6153291,0.00013699,2]
[426414031,1782361768000,-1000.0,0.00013699,2]
[426414028,1782361768000,-500.0,0.00013698,2]
[426414030,1782361768000,-500.0,0.00013698,2]
[426414029,1782361768000,-252.09767564,0.00013698,2]
[426414024,1782361768000,-220.9377478,0.00012342,2]
[426414026,1782361768000,-1494.595065,0.00012751,2]
[426414025,1782361768000,-272.0,0.00012419,2]
[426414023,1782361768000,-1494.595065,0.00012236,2]
[426414022,1782361768000,-8432.314994,0.00011992,2]
[426414021,1782361768000,-504.59373025,0.00011991,2]
[426414019,1782361768000,-459.4515825,0.00011307,2]
[426414018,1782361768000,-420.0,0.00011293,2]
[426414020,1782361768000,-1419.9925528,0.00011448,2]
[426414017,1782361768000,-5707.14329246,0.00011193,2]
[426414027,1782361768000,-1494.595065,0.00013266,2]
[426414041,1782361768000,-500.0,0.00015142,2]
[426414032,1782361768000,-6640.1826285,0.00013699,2]
[426414040,1782361768000,-234.24104118,0.00015043,2]
[426414039,1782361768000,-1494.595065,0.00014811,2]
[426414061,1782361768000,-739.78590104,0.00015143,2]
[426414057,1782361768000,-272.17691339,0.00015143,2]
[426414059,1782361768000,-739.78590104,0.00015143,2]
[426414060,1782361768000,-739.78590104,0.00015143,2]
[426414056,1782361768000,-502.93837888,0.00015143,2]
[426414054,1782361768000,-500.0,0.00015143,2]
[426414055,1782361768000,-343.23759198,0.00015143,2]
[426414053,1782361768000,-500.0,0.00015143,2]
[426414052,1782361768000,-500.0,0.00015143,2]
[426414058,1782361768000,-739.78590104,0.00015143,2]
[426414050,1782361768000,-500.0,0.00015143,2]
[426414049,1782361768000,-500.0,0.00015143,2]
[426414048,1782361768000,-500.0,0.00015143,2]
[426414047,1782361768000,-302.3463376,0.00015143,2]
[426414046,1782361768000,-500.0,0.00015143,2]
[426414044,1782361768000,-500.0,0.00015143,2]
[426414038,1782361768000,-293.231178,0.00014658,2]
[426414045,1782361768000,-500.0,0.00015143,2]
[426414043,1782361768000,-500.0,0.00015143,2]
[426414042,1782361768000,-500.0,0.00015143,2]
[426414051,1782361768000,-220.24342299,0.00015143,2]
[426414063,1782361769000,-690.47606373,0.00015143,2]
[426414062,1782361769000,-739.78590104,0.00015143,2]
[426414105,1782361832000,-600.0,0.00015446,2]
[426414114,1782361832000,-729.0510249,0.000155,2]
[426414107,1782361832000,-891.32363274,0.000155,2]
[426414222,1782361838000,-9738.22405107,0.000155,2]
[426414224,1782361838000,-720.0,0.00016991,2]
[426414234,1782361838000,-500.0,0.00019999,2]
[426414230,1782361838000,-151.0,0.000199,2]
[426414226,1782361838000,-211.2025605,0.00017899,2]
[426414227,1782361838000,-864.0,0.0001869,2]
[426414228,1782361838000,-151.0,0.000199,2]
[426414229,1782361838000,-151.0,0.000199,2]
[426414236,1782361838000,-500.0,0.00019999,2]
[426414233,1782361838000,-500.0,0.00019999,2]
[426414237,1782361838000,-500.0,0.00019999,2]
[426414232,1782361838000,-500.0,0.00019999,2]
[426414235,1782361838000,-500.0,0.00019999,2]
[426414231,1782361838000,-151.0,0.000199,2]
[426414239,1782361838000,-500.0,0.00019999,2]
[426414238,1782361838000,-500.0,0.00019999,2]
[426414241,1782361838000,-17942.44795615,0.0002,2]
[426414240,1782361838000,-597.2,0.00019999,2]
[426414225,1782361838000,-156.77,0.00017808,2]
[426414253,1782361843000,-722.0,0.0002,2]
[426414252,1782361843000,-4332.12958166,0.0002,2]
[426414282,1782361847000,-1234.5882553,0.0002,2]
[426414283,1782361847000,-1831.55,0.0002,2]
[426414281,1782361847000,-1834.85239551,0.000198,2]
[426414285,1782361914000,1000.0,0.00028667,30]
[426414286,1782361929000,-500.0,0.00013698,2]
[426414287,1782362023000,408.0,0.0002715,30]
[426414288,1782362104000,163.0,0.00020728,120]
[426414290,1782362105000,163.0,0.00021764,120]
[426414291,1782362106000,163.0,0.00022853,120]
[426414292,1782362117000,5000.0,0.000101,13]
[426414293,1782362125000,2731.68949442,0.000101,13]
[426414298,1782362377000,1592.27772702,0.00029258,30]
[426414299,1782362429000,210.13769,0.00029,120]
[426414300,1782362434000,200.0,0.00027,120]
[426414301,1782362486000,1000.0,0.00024658,120]
[426414302,1782362487000,1026.58654549,0.00027397,120]
[426414303,1782362746000,-207.65813068,9.51e-05,7]
[426414304,1782362785000,500.0,0.00028767,120]
[426414305,1782362786000,519.53700565,0.00028767,120]
[426414309,1782362828000,-361.32291167,9.986e-05,7]
[426414310,1782362828000,-153.0,0.00010271,7]
[426414308,1782362828000,-361.32291167,9.7e-05,7]
[426414311,1782362828000,-51.21826327,0.00010271,7]
[426414307,1782362828000,-153.66478099,9.51e-05,7]
[426414312,1782362831000,726.07365114,0.000101,13]
[426414315,1782362849000,-1309.80160514,0.00011363,2]
[426414313,1782362849000,-310.1046484,0.00010271,7]
[426414314,1782362849000,-361.32291168,0.00010651,7]
[426414319,1782362951000,-36.9061632,0.00013595,2]
[426414318,1782362951000,-463.31,0.00011931,2]
[426414317,1782362951000,-2034.15859166,0.00011363,2]
[426414384,1782363032000,-744.893667,0.00013431,2]
[426414388,1782363033000,-4774.63886838,0.00013598,2]
[426414386,1782363033000,-1089.95872851,0.00013598,2]
[426414403,1782363033000,-120.05876307,0.00013598,2]
[426414484,1782363038000,-500.0,0.00013647,2]
[426414483,1782363038000,-500.0,0.00013647,2]
[426414481,1782363038000,-500.0,0.00013647,2]
[426414479,1782363038000,-500.0,0.00013647,2]
[426414476,1782363038000,-500.0,0.00013647,2]
[426414477,1782363038000,-500.0,0.00013647,2]
[426414478,1782363038000,-500.0,0.00013647,2]
[426414482,1782363038000,-500.0,0.00013647,2]
[426414475,1782363038000,-634.9322485,0.00013647,2]
[426414468,1782363038000,-500.0,0.00013647,2]
[426414473,1782363038000,-500.0,0.00013647,2]
[426414470,1782363038000,-500.0,0.00013647,2]
[426414469,1782363038000,-500.0,0.00013647,2]
[426414472,1782363038000,-500.0,0.00013647,2]
[426414471,1782363038000,-500.0,0.00013647,2]
[426414486,1782363038000,-500.0,0.00013647,2]
[426414467,1782363038000,-500.0,0.00013647,2]
[426414465,1782363038000,-1795.24564145,0.00013598,2]
[426414466,1782363038000,-300.0,0.00013646,2]
[426414474,1782363038000,-500.0,0.00013647,2]
[426414485,1782363038000,-500.0,0.00013647,2]
[426414480,1782363038000,-500.0,0.00013647,2]
[426414498,1782363038000,-500.0,0.00013647,2]
[426414487,1782363038000,-500.0,0.00013647,2]
[426414506,1782363038000,-500.0,0.00013647,2]
[426414508,1782363038000,-500.0,0.00013647,2]
[426414505,1782363038000,-500.0,0.00013647,2]
[426414502,1782363038000,-500.0,0.00013647,2]
[426414501,1782363038000,-500.0,0.00013647,2]
[426414504,1782363038000,-500.0,0.00013647,2]
[426414507,1782363038000,-500.0,0.00013647,2]
[426414495,1782363038000,-555.71628164,0.00013647,2]
[426414496,1782363038000,-500.0,0.00013647,2]
[426414503,1782363038000,-500.0,0.00013647,2]
[426414493,1782363038000,-500.0,0.00013647,2]
[426414492,1782363038000,-500.0,0.00013647,2]
[426414490,1782363038000,-500.0,0.00013647,2]
[426414488,1782363038000,-500.0,0.00013647,2]
[426414491,1782363038000,-500.0,0.00013647,2]
[426414500,1782363038000,-500.0,0.00013647,2]
[426414499,1782363038000,-500.0,0.00013647,2]
[426414497,1782363038000,-500.0,0.00013647,2]
[426414494,1782363038000,-500.0,0.00013647,2]
[426414489,1782363038000,-500.0,0.00013647,2]
[426414557,1782363039000,-587.0,0.0001639,2]
[426414556,1782363039000,-500.0,0.0001635,2]
[426414555,1782363039000,-500.0,0.0001635,2]
[426414550,1782363039000,-500.0,0.00015616,2]
[426414543,1782363039000,-420.0,0.00014955,2]
[426414544,1782363039000,-500.0,0.00015068,2]
[426414545,1782363039000,-159.2289803,0.00015068,2]
[426414542,1782363039000,-500.0,0.0001481,2]
[426414546,1782363039000,-500.0,0.00015143,2]
[426414549,1782363039000,-529.22661931,0.00015499,2]
[426414553,1782363039000,-190.2210965,0.0001601,2]
[426414539,1782363039000,-500.0,0.00014809,2]
[426414547,1782363039000,-1783.031274,0.0001521,2]
[426414554,1782363039000,-524.55921928,0.00016164,2]
[426414564,1782363039000,-183.48,0.00018,2]
[426414551,1782363039000,-1783.031274,0.00015801,2]
[426414560,1782363039000,-292.45519668,0.00016692,2]
[426414558,1782363039000,-1783.031274,0.00016392,2]
[426414559,1782363039000,-151.0,0.00016692,2]
[426414562,1782363039000,-500.0,0.00016984,2]
[426414561,1782363039000,-1783.031274,0.00016982,2]
[426414565,1782363039000,-183.48,0.00018,2]
[426414572,1782363039000,-500.0,0.00019897,2]
[426414563,1782363039000,-163.0,0.00017963,2]
[426414575,1782363039000,-500.0,0.00019899,2]
[426414566,1782363039000,-325.04540156,0.00019335,2]
[426414576,1782363039000,-500.0,0.00019899,2]
[426414540,1782363039000,-500.0,0.00014809,2]
[426414552,1782363039000,-500.0,0.0001589,2]
[426414538,1782363039000,-500.0,0.00014794,2]
[426414513,1782363039000,-500.0,0.00013647,2]
[426414548,1782363039000,-500.0,0.00015342,2]
[426414511,1782363039000,-500.0,0.00013647,2]
[426414510,1782363039000,-500.0,0.00013647,2]
[426414509,1782363039000,-500.0,0.00013647,2]
[426414574,1782363039000,-500.0,0.00019899,2]
[426414523,1782363039000,-50.12861696,0.00013698,2]
[426414512,1782363039000,-500.0,0.00013647,2]
[426414514,1782363039000,-500.0,0.00013647,2]
[426414518,1782363039000,-370.59844139,0.0001365,2]
[426414520,1782363039000,-500.0,0.00013698,2]
[426414515,1782363039000,-650.0,0.00013647,2]
[426414519,1782363039000,-500.0,0.00013698,2]
[426414516,1782363039000,-13925.18153661,0.0001365,2]
[426414517,1782363039000,-704.220022,0.0001365,2]
[426414521,1782363039000,-500.0,0.00013698,2]
[426414522,1782363039000,-449.87138304,0.00013698,2]
[426414524,1782363039000,-500.0,0.00013698,2]
[426414527,1782363039000,-500.0,0.00013698,2]
[426414526,1782363039000,-500.0,0.00013698,2]
[426414525,1782363039000,-597.98,0.00013698,2]
[426414535,1782363039000,-500.0,0.0001452,2]
[426414528,1782363039000,-500.0,0.00013698,2]
[426414530,1782363039000,-1000.0,0.00013699,2]
[426414529,1782363039000,-500.0,0.00013698,2]
[426414531,1782363039000,-500.0,0.00013972,2]
[426414533,1782363039000,-2879.3391687,0.00014177,2]
[426414534,1782363039000,-500.0,0.00014246,2]
[426414536,1782363039000,-1783.031274,0.0001462,2]
[426414532,1782363039000,-1783.031274,0.00014029,2]
[426414537,1782363039000,-199.695433,0.00014705,2]
[426414541,1782363039000,-500.0,0.00014809,2]
[426414567,1782363039000,-257.71109279,0.00019335,2]
[426414573,1782363039000,-500.0,0.00019899,2]
[426414568,1782363039000,-183.48,0.00019788,2]
[426414602,1782363039000,-500.0,0.00019899,2]
[426414608,1782363039000,-500.0,0.00019899,2]
[426414603,1782363039000,-500.0,0.00019899,2]
[426414609,1782363039000,-500.0,0.00019899,2]
[426414610,1782363039000,-500.0,0.00019899,2]
[426414611,1782363039000,-500.0,0.00019899,2]
[426414612,1782363039000,-500.0,0.00019899,2]
[426414616,1782363039000,-500.0,0.00019899,2]
[426414627,1782363039000,-53955.22884494,0.0002,2]
[426414626,1782363039000,-875.52,0.0001999,3]
[426414615,1782363039000,-500.0,0.00019899,2]
[426414622,1782363039000,-345.4295671,0.00019899,2]
[426414618,1782363039000,-500.0,0.00019899,2]
[426414619,1782363039000,-500.0,0.00019899,2]
[426414621,1782363039000,-500.0,0.00019899,2]
[426414617,1782363039000,-500.0,0.00019899,2]
[426414620,1782363039000,-500.0,0.00019899,2]
[426414623,1782363039000,-151.0,0.000199,2]
[426414625,1782363039000,-151.0,0.000199,2]
[426414624,1782363039000,-151.0,0.000199,2]
[426414628,1782363039000,-600.0,0.00020398,2]
[426414631,1782363039000,-160.0,0.00021562,5]
[426414630,1782363039000,-176.28420066,0.00021107,2]
[426414629,1782363039000,-669.91649032,0.00020829,2]
[426414633,1782363039000,-199.695433,0.00022058,2]
[426414635,1782363039000,-190.2210965,0.00022948,2]
[426414632,1782363039000,-152.87489462,0.000218,2]
[426414634,1782363039000,-720.0,0.00022438,10]
[426414571,1782363039000,-500.0,0.00019799,2]
[426414607,1782363039000,-500.0,0.00019899,2]
[426414604,1782363039000,-395.8,0.00019899,2]
[426414636,1782363039000,-5550.60827796,0.00023,3]
[426414613,1782363039000,-500.0,0.00019899,2]
[426414569,1782363039000,-500.0,0.00019799,2]
[426414570,1782363039000,-500.0,0.00019799,2]
[426414579,1782363039000,-500.0,0.00019899,2]
[426414577,1782363039000,-500.0,0.00019899,2]
[426414580,1782363039000,-500.0,0.00019899,2]
[426414581,1782363039000,-500.0,0.00019899,2]
[426414578,1782363039000,-500.0,0.00019899,2]
[426414588,1782363039000,-500.0,0.00019899,2]
[426414606,1782363039000,-500.0,0.00019899,2]
[426414582,1782363039000,-500.0,0.00019899,2]
[426414586,1782363039000,-500.0,0.00019899,2]
[426414584,1782363039000,-500.0,0.00019899,2]
[426414589,1782363039000,-500.0,0.00019899,2]
[426414587,1782363039000,-500.0,0.00019899,2]
[426414583,1782363039000,-500.0,0.00019899,2]
[426414591,1782363039000,-500.0,0.00019899,2]
[426414585,1782363039000,-500.0,0.00019899,2]
[426414605,1782363039000,-500.0,0.00019899,2]
[426414601,1782363039000,-500.0,0.00019899,2]
[426414600,1782363039000,-500.0,0.00019899,2]
[426414599,1782363039000,-500.0,0.00019899,2]
[426414596,1782363039000,-255.8,0.00019899,2]
[426414614,1782363039000,-500.0,0.00019899,2]
[426414597,1782363039000,-500.0,0.00019899,2]
[426414595,1782363039000,-500.0,0.00019899,2]
[426414593,1782363039000,-500.0,0.00019899,2]
[426414594,1782363039000,-500.0,0.00019899,2]
[426414592,1782363039000,-500.0,0.00019899,2]
[426414590,1782363039000,-500.0,0.00019899,2]
[426414598,1782363039000,-500.0,0.00019899,2]
[426414683,1782363040000,-357.14893923,0.00036079,2]
[426414684,1782363040000,-345.87751719,0.00036079,2]
[426414682,1782363040000,-743.14523418,0.00035882,120]
[426414680,1782363040000,-800.0,0.00035653,2]
[426414673,1782363040000,-178.57446961,0.00035641,2]
[426414672,1782363040000,-200.0,0.00035616,38]
[426414671,1782363040000,-200.0,0.00035616,38]
[426414675,1782363040000,-451.80442153,0.00035641,2]
[426414670,1782363040000,-393.90994565,0.00034992,2]
[426414669,1782363040000,-301.20294769,0.00034983,2]
[426414667,1782363040000,-196.95497282,0.00034005,2]
[426414674,1782363040000,-172.93875859,0.00035641,2]
[426414687,1782363040000,-445.68724106,0.00036079,2]
[426414698,1782363040000,-190.2210965,0.00036823,2]
[426414690,1782363040000,-414.06947295,0.00036082,2]
[426414681,1782363040000,-300.0,0.00035653,2]
[426414686,1782363040000,-365.48740961,0.00036079,2]
[426414688,1782363040000,-498.12307202,0.00036079,2]
[426414685,1782363040000,-602.40589538,0.00036079,2]
[426414689,1782363040000,-151.0,0.00036082,7]
[426414692,1782363040000,-787.81989129,0.00036088,2]
[426414693,1782363040000,-753.00736922,0.00036518,2]
[426414704,1782363040000,-158.25,0.000383,120]
[426414703,1782363040000,-385.17241,0.000376,120]
[426414707,1782363040000,-158.25,0.000388,120]
[426414706,1782363040000,-200.0,0.00038454,51]
[426414695,1782363040000,-151.0,0.00036518,7]
[426414679,1782363040000,-590.86491847,0.0003565,2]
[426414691,1782363040000,-370.53178759,0.00036088,2]
[426414677,1782363040000,-249.06153601,0.00035641,2]
[426414652,1782363040000,-300.0,0.00030137,2]
[426414676,1782363040000,-182.7437048,0.00035641,2]
[426414694,1782363040000,-151.0,0.00036518,7]
[426414639,1782363040000,-864.0,0.00024682,10]
[426414637,1782363040000,-198.25,0.00023288,2]
[426414640,1782363040000,-300.40595906,0.00025,2]
[426414638,1782363040000,-341.848,0.00023991,5]
[426414641,1782363040000,-1624.224103,0.000254,2]
[426414642,1782363040000,-727.78666541,0.00026,2]
[426414644,1782363040000,-160.0,0.00028138,2]
[426414643,1782363040000,-269.14,0.00027155,3]
[426414650,1782363040000,-190.2210965,0.00029885,2]
[426414649,1782363040000,-7779.90200138,0.00029294,2]
[426414647,1782363040000,-150.0,0.00029257,2]
[426414648,1782363040000,-735.29784047,0.00029257,2]
[426414678,1782363040000,-185.26589379,0.00035644,2]
[426414645,1782363040000,-160.0,0.00028138,2]
[426414651,1782363040000,-151.0,0.00030137,6]
[426414654,1782363040000,-152.0,0.00030308,7]
[426414653,1782363040000,-152.0,0.00030308,7]
[426414656,1782363040000,-152.0,0.00030308,7]
[426414664,1782363040000,-158.51251928,0.000332,117]
[426414658,1782363040000,-152.0,0.00030308,7]
[426414660,1782363040000,-152.0,0.00030308,7]
[426414661,1782363040000,-152.0,0.00030308,7]
[426414657,1782363040000,-152.0,0.00030308,7]
[426414662,1782363040000,-284.0,0.00030308,7]
[426414659,1782363040000,-152.0,0.00030308,7]
[426414663,1782363040000,-200.0,0.000323,120]
[426414665,1782363040000,-150.60147384,0.00033997,2]
[426414646,1782363040000,-727.41574486,0.00028157,2]
[426414699,1782363040000,-903.60884307,0.00037176,2]
[426414802,1782363040000,-500.0,0.00040273,30]
[426414702,1782363040000,-200.0,0.00037586,45]
[426414773,1782363040000,-500.0,0.00040273,30]
[426414781,1782363040000,-500.0,0.00040273,30]
[426414786,1782363040000,-529.24967307,0.00040273,30]
[426414783,1782363040000,-500.0,0.00040273,30]
[426414777,1782363040000,-183.13603394,0.00040273,30]
[426414788,1782363040000,-500.0,0.00040273,30]
[426414779,1782363040000,-151.62462537,0.00040273,30]
[426414785,1782363040000,-500.0,0.00040273,30]
[426414791,1782363040000,-151.0,0.00040273,120]
[426414808,1782363040000,-154.90417098,0.00040273,30]
[426414793,1782363040000,-279.912046,0.00040273,120]
[426414799,1782363040000,-535.45123993,0.00040273,30]
[426414812,1782363040000,-500.0,0.00040273,30]
[426414765,1782363040000,-151.0,0.00040273,120]
[426414806,1782363040000,-500.0,0.00040273,30]
[426414795,1782363040000,-500.0,0.00040273,30]
[426414790,1782363040000,-535.63759732,0.00040273,30]
[426414826,1782363040000,-603.24061985,0.00040273,30]
[426414810,1782363040000,-500.0,0.00040273,30]
[426414804,1782363040000,-586.9736635,0.00040273,30]
[426414797,1782363040000,-500.0,0.00040273,30]
[426414819,1782363040000,-500.0,0.00040273,30]
[426414817,1782363040000,-500.0,0.00040273,30]
[426414824,1782363040000,-500.0,0.00040273,30]
[426414820,1782363040000,-500.0,0.00040273,30]
[426414813,1782363040000,-500.0,0.00040273,30]
[426414815,1782363040000,-500.0,0.00040273,30]
[426414822,1782363040000,-538.13683417,0.00040273,30]
[426414800,1782363040000,-500.0,0.00040273,30]
[426414775,1782363040000,-500.0,0.00040273,30]
[426414696,1782363040000,-984.77486411,0.00036527,2]
[426414769,1782363040000,-500.0,0.00040273,30]
[426414700,1782363040000,-151.0,0.00037176,7]
[426414697,1782363040000,-200.0,0.00036642,41]
[426414709,1782363040000,-164.08648372,0.00039,120]
[426414711,1782363040000,-822.54078256,0.00039,120]
[426414719,1782363040000,-200.0,0.00039988,68]
[426414717,1782363040000,-158.25,0.000398,120]
[426414715,1782363040000,-158.25,0.000393,120]
[426414713,1782363040000,-200.0,0.00039253,59]
[426414771,1782363040000,-500.0,0.00040273,30]
[426414725,1782363040000,-822.54078256,0.000402,120]
[426414723,1782363040000,-253.14790871,0.00040173,2]
[426414729,1782363040000,-500.0,0.00040273,30]
[426414731,1782363040000,-500.0,0.00040273,30]
[426414727,1782363040000,-253.14790867,0.00040243,2]
[426414721,1782363040000,-200.0,0.00040027,30]
[426414733,1782363040000,-500.0,0.00040273,30]
[426414742,1782363040000,-151.0,0.00040273,120]
[426414763,1782363040000,-153.791463,0.00040273,120]
[426414759,1782363040000,-506.19928719,0.00040273,30]
[426414761,1782363040000,-151.0,0.00040273,120]
[426414757,1782363040000,-151.0,0.00040273,120]
[426414745,1782363040000,-151.0,0.00040273,120]
[426414767,1782363040000,-153.83488,0.00040273,120]
[426414751,1782363040000,-151.0,0.00040273,120]
[426414755,1782363040000,-151.0,0.00040273,120]
[426414752,1782363040000,-151.0,0.00040273,120]
[426414739,1782363040000,-509.06390065,0.00040273,30]
[426414737,1782363040000,-500.0,0.00040273,30]
[426414735,1782363040000,-609.46236342,0.00040273,30]
[426414748,1782363040000,-151.0,0.00040273,120]
[426414926,1782363041000,-332.21579668,0.00040273,30]
[426414922,1782363041000,-500.0,0.00040273,30]
[426414902,1782363041000,-500.0,0.00040273,30]
[426414885,1782363041000,-500.0,0.00040273,30]
[426414908,1782363041000,-525.93131646,0.00040273,30]
[426414883,1782363041000,-500.0,0.00040273,30]
[426414893,1782363041000,-500.0,0.00040273,30]
[426414900,1782363041000,-541.92715816,0.00040273,30]
[426414904,1782363041000,-500.0,0.00040273,30]
[426414906,1782363041000,-500.0,0.00040273,30]
[426414896,1782363041000,-500.0,0.00040273,30]
[426414891,1782363041000,-500.0,0.00040273,30]
[426414910,1782363041000,-500.0,0.00040273,30]
[426414943,1782363041000,-521.7371782,0.00040273,30]
[426414920,1782363041000,-519.03477135,0.00040273,30]
[426414914,1782363041000,-500.0,0.00040273,30]
[426414932,1782363041000,-527.33865988,0.00040273,30]
[426414928,1782363041000,-500.0,0.00040273,30]
[426414912,1782363041000,-188.21900545,0.00040273,30]
[426414916,1782363041000,-500.0,0.00040273,30]
[426414934,1782363041000,-500.0,0.00040273,30]
[426414918,1782363041000,-500.0,0.00040273,30]
[426414930,1782363041000,-500.0,0.00040273,30]
[426414935,1782363041000,-500.0,0.00040273,30]
[426414939,1782363041000,-548.24201276,0.00040273,30]
[426414937,1782363041000,-500.0,0.00040273,30]
[426414941,1782363041000,-500.0,0.00040273,30]
[426414887,1782363041000,-522.16451427,0.00040273,30]
[426414924,1782363041000,-500.0,0.00040273,30]
[426414889,1782363041000,-500.0,0.00040273,30]
[426414855,1782363041000,-500.0,0.00040273,30]
[426414894,1782363041000,-500.0,0.00040273,30]
[426414945,1782363041000,-500.0,0.00040273,30]
[426414828,1782363041000,-500.0,0.00040273,30]
[426414830,1782363041000,-510.66811499,0.00040273,30]
[426414833,1782363041000,-500.0,0.00040273,30]
[426414831,1782363041000,-500.0,0.00040273,30]
[426414837,1782363041000,-514.61346704,0.00040273,30]
[426414835,1782363041000,-500.0,0.00040273,30]
[426414842,1782363041000,-500.0,0.00040273,30]
[426414840,1782363041000,-500.0,0.00040273,30]
[426414839,1782363041000,-500.0,0.00040273,30]
[426414849,1782363041000,-574.32462319,0.00040273,30]
[426414844,1782363041000,-500.0,0.00040273,30]
[426414853,1782363041000,-500.0,0.00040273,30]
[426414845,1782363041000,-511.62117092,0.00040273,30]
[426414857,1782363041000,-517.74062313,0.00040273,30]
[426414847,1782363041000,-530.18667838,0.00040273,30]
[426414859,1782363041000,-500.0,0.00040273,30]
[426414862,1782363041000,-500.0,0.00040273,30]
[426414870,1782363041000,-500.0,0.00040273,30]
[426414874,1782363041000,-516.69681652,0.00040273,30]
[426414861,1782363041000,-507.7283085,0.00040273,30]
[426414876,1782363041000,-500.0,0.00040273,30]
[426414868,1782363041000,-351.12485195,0.00040273,30]
[426414864,1782363041000,-510.32884345,0.00040273,30]
[426414878,1782363041000,-500.0,0.00040273,30]
[426414872,1782363041000,-500.0,0.00040273,30]
[426414866,1782363041000,-524.1266766,0.00040273,30]
[426414881,1782363041000,-513.2904341,0.00040273,30]
[426414879,1782363041000,-611.0284332,0.00040273,7]
[426414899,1782363041000,-273.79750506,0.00040273,30]
[426414947,1782363041000,-500.0,0.00040273,30]
[426414956,1782363041000,-151.0,0.00040273,28]
[426414950,1782363041000,-500.0,0.00040273,30]
[426415015,1782363041000,-530.15899101,0.00040273,30]
[426415029,1782363041000,-500.0,0.00040273,30]
[426415021,1782363041000,-536.35168128,0.00040273,30]
[426415010,1782363041000,-500.0,0.00040273,30]
[426415031,1782363041000,-500.0,0.00040273,30]
[426415034,1782363041000,-500.0,0.00040273,30]
[426415023,1782363041000,-500.0,0.00040273,30]
[426415027,1782363041000,-500.0,0.00040273,30]
[426415025,1782363041000,-500.0,0.00040273,30]
[426415033,1782363041000,-500.0,0.00040273,30]
[426415036,1782363041000,-500.0,0.00040273,30]
[426415054,1782363041000,-500.0,0.00040273,30]